bitfinex-derivatives/quotes_SOLF0:USTF0_20250321
["timestamp","ask_amount","ask_price","bid_price","bid_amount"]
[1742592770239,3.58549885,129.56,129.55,262.4019]
[1742592770439,9.885e-05,129.56,129.55,262.4019]
[1742592770835,16.08218175,129.64,129.59,23.27]
[1742592771041,16.48101279,129.67,129.6,52.89320987]
[1742592771241,16.48101279,129.67,129.61,285.70009299]
[1742592771535,16.48101279,129.67,129.62,1.54297176]
[1742592771734,16.48101279,129.67,129.63,0.05544698]
[1742592771935,16.48101279,129.67,129.64,28.18]
[1742592772936,16.48101279,129.67,129.64,29.72273372]
[1742592773137,16.48101279,129.67,129.65,7.716]
[1742592773332,16.48101279,129.67,129.64,29.72273372]
[1742592773738,16.48101279,129.67,129.64,37.43893372]
[1742592774542,16.48101279,129.67,129.65,1.54261473]
[1742592777743,16.48101279,129.67,129.65,9.25851473]
[1742592778132,16.48101279,129.67,129.65,1.54261473]
[1742592781047,16.48101279,129.67,129.65,9.25851473]
[1742592781950,16.48101279,129.67,129.65,1.54261473]
[1742592782246,16.48101279,129.67,129.66,7.7154]
[1742592782742,4.1699,129.7,129.65,1.54261473]
[1742592783145,4.1699,129.7,129.66,0.05770377]
[1742592783343,4.1699,129.7,129.67,282.62]
[1742592785150,4.1699,129.7,129.67,290.3347]
[1742592787550,4.1699,129.7,129.68,7.7142]
[1742592787852,4.1699,129.7,129.67,282.62]
[1742592788251,4.1699,129.7,129.67,290.3342]
[1742592788954,4.1699,129.7,129.68,7.7142]
[1742592790047,1.9966,129.72,129.68,1.54225786]
[1742592791868,1.9966,129.72,129.7,7.713]
[1742592792056,1.9966,129.72,129.7,35.813]
[1742592793169,17.26958195,129.73,129.7,35.813]
[1742592793368,17.26958195,129.73,129.7,37.35502004]
[1742592793862,6.043e-05,129.79,129.7,692.02763323]
[1742592794065,17.62110221,129.85,129.71,2.95751435]
[1742592794362,17.62110221,129.85,129.83,7.7048]
[1742592794568,17.62110221,129.85,129.84,282.68]
[1742592795366,18.50076983,129.9,129.84,254.38]
[1742592795569,18.50076983,129.9,129.85,28.36]
[1742592795766,18.50076983,129.9,129.86,0.05678135]
[1742592795963,33.90216983,129.9,129.86,0.05678135]
[1742592796262,26.20076983,129.9,129.86,0.05678135]
[1742592796462,7.7018,129.89,129.86,0.05678135]
[1742592796866,7.7,129.89,129.86,0.05678135]
[1742592797467,7.7,129.89,129.85,28.36]
[1742592797766,7.7018,129.89,129.85,28.36]
[1742592797968,18.50076983,129.9,129.85,28.36]
[1742592798267,26.20246983,129.9,129.85,28.36]
[1742592798666,0.05231297,129.89,129.86,0.0508883]
[1742592799067,9.72051297,129.89,129.86,0.0508883]
[1742592799668,2.02051297,129.89,129.86,0.0508883]
[1742592800468,1.9713,129.88,129.86,0.0508883]
[1742592800964,1.9713,129.88,129.87,7.7029]
[1742592801866,1.9713,129.88,129.87,36.0829]
[1742592802066,1.9713,129.88,129.87,28.38]
[1742592802666,2.02051297,129.89,129.87,28.38]
[1742592803265,0.05231297,129.89,129.87,29.92000154]
[1742592803675,19.52405269,129.92,129.87,53.19000154]
[1742592803972,19.52405269,129.92,129.88,1.53988296]
[1742592804872,19.52405269,129.92,129.89,0.05456123]
[1742592805068,19.52405269,129.92,129.9,282.84]
[1742592805271,19.52405269,129.92,129.9,290.5408]
[1742592805771,19.52405269,129.92,129.91,7.7005]
[1742592805970,19.52405269,129.92,129.9,282.84]
[1742592807379,19.52405269,129.92,129.9,254.14]
[1742592807675,19.52405269,129.92,129.91,28.74]
[1742592808676,19.52405269,129.92,129.9,254.14]
[1742592808878,19.52405269,129.92,129.91,28.72]
[1742592809376,19.52405269,129.92,129.91,25.4693]
[1742592811177,27.22405269,129.92,129.91,28.7]
[1742592811373,27.22405269,129.92,129.9,247.6386]
[1742592811573,7.7005,129.91,129.9,276.3386]
[1742592811767,7.7005,129.91,129.9,234.3789]
[1742592811972,7.7,129.91,129.89,28.75456123]
[1742592812173,7.7011,129.9,129.89,0.05456123]
[1742592812678,15.4011,129.9,129.89,6.123e-05]
[1742592815068,44.0811,129.9,129.89,6.123e-05]
[1742592816281,7.7039,129.86,129.83,28.72]
[1742592816871,7.7041,129.85,129.83,28.72]
[1742592817380,7.7038,129.86,129.81,7.7064]
[1742592817575,0.05012185,129.85,129.83,0.05024396]
[1742592817779,28.68,129.86,129.8,254.02]
[1742592817980,0.05649645,129.85,129.83,0.05249724]
[1742592818179,28.68,129.86,129.77,28.7]
[1742592818376,7.7047,129.84,129.83,6.421e-05]
[1742592818575,0.05115672,129.85,129.74,254.06]
[1742592818779,28.68,129.86,129.74,254.06]
[1742592818975,28.68,129.86,129.74,282.78]
[1742592819480,0.05290745,129.81,129.79,0.05921155]
[1742592819679,36.447,129.8,129.79,0.05921155]
[1742592819886,28.74,129.8,129.74,282.78]
[1742592820083,36.44,129.8,129.78,0.05094013]
[1742592820276,7.7076,129.79,129.78,0.05094013]
[1742592820477,36.49059751,129.8,129.67,254.1]
[1742592820679,28.74,129.8,129.67,282.84]
[1742592820881,7.711,129.74,129.68,28.74]
[1742592821084,36.451,129.74,129.68,28.74]
[1742592821383,36.451,129.74,129.69,7.7132]
[1742592821679,7.76558126,129.73,129.7,0.05473507]
[1742592822279,0.05418126,129.73,129.7,0.05473507]
[1742592823481,0.05418126,129.73,129.72,7.7118]
[1742592826885,0.05418126,129.73,129.71,36.4321]
[1742592827584,0.05418126,129.73,129.71,28.72]
[1742592828684,0.05418126,129.73,129.72,7.7118]
[1742592834586,0.05418126,129.73,129.71,28.72]
[1742592835887,0.05418126,129.73,129.71,36.4321]
[1742592836790,0.05418126,129.73,129.7,7.76743507]
[1742592836990,0.05418126,129.73,129.7,36.34743507]
[1742592837891,0.05418126,129.73,129.7,7.76743507]
[1742592838688,7.76538126,129.73,129.7,0.05473507]
[1742592838887,0.05418126,129.73,129.7,0.05473507]
[1742592839292,7.7121,129.72,129.7,0.05473507]
[1742592840193,7.7124,129.71,129.7,0.05473507]
[1742592840686,43.9924,129.71,129.7,0.05473507]
[1742592844797,43.9924,129.71,129.7,3.507e-05]
[1742592847297,15.4124,129.71,129.7,3.507e-05]
[1742592847497,44.0324,129.71,129.7,3.507e-05]
[1742592848992,28.62,129.71,129.7,3.507e-05]
[1742592849191,28.65418126,129.73,129.7,3.507e-05]
[1742592849393,7.7121,129.72,129.7,3.507e-05]
[1742592850394,0.05418126,129.73,129.7,3.507e-05]
[1742592850993,0.05418126,129.73,129.71,7.7121]
[1742592851594,0.05418126,129.73,129.7,3.507e-05]
[1742592852001,0.05418126,129.73,129.72,7.7118]
[1742592852397,0.05418126,129.73,129.72,36.2718]
[1742592852596,28.56,129.79,129.75,7.7098]
[1742592852800,254.44,129.81,129.75,7.7098]
[1742592853099,7.7079,129.79,129.75,7.7098]
[1742592853395,7.7079,129.79,129.76,7.7093]
[1742592853590,7.7058,129.83,129.75,28.56]
[1742592853789,0.04987276,129.79,129.76,30.8031861]
[1742592853990,28.62,129.84,129.81,7.7061]
[1742592854190,28.62,129.85,129.79,28.62]
[1742592854399,36.3237,129.86,129.8,28.62]
[1742592854594,7.7037,129.86,129.82,7.7056]
[1742592854799,36.3237,129.86,129.8,28.62]
[1742592855195,0.05485089,129.84,129.82,0.05040338]
[1742592857898,0.05485089,129.84,129.83,28.56]
[1742592858098,19.52405269,129.92,129.83,28.56]
[1742592858298,19.52405269,129.92,129.83,30.5901]
[1742592858699,19.52405269,129.92,129.88,7.7021]
[1742592859002,19.52405269,129.92,129.89,28.68]
[1742592859206,0.0521486,129.91,129.89,30.86083453]
[1742592859996,0.0521486,129.91,129.89,28.72933453]
[1742592862105,19.52405269,129.92,129.89,28.72933453]
[1742592862603,19.52405269,129.92,129.9,2.0647]
[1742592871415,19.52405269,129.92,129.89,28.72933453]
[1742592871608,19.52405269,129.92,129.89,0.04933453]
[1742592872518,7.7011,129.9,129.89,0.04933453]
[1742592873413,7.7,129.9,129.85,28.62]
[1742592873618,28.67154354,129.91,129.85,28.62]
[1742592873810,28.67154354,129.91,129.83,254.08]
[1742592874012,28.62,129.91,129.83,290.4249]
[1742592874210,28.62,129.91,129.83,282.72]
[1742592874414,0.05154354,129.88,129.86,9.196e-05]
[1742592874615,28.62,129.87,129.86,9.196e-05]
[1742592875023,44.0229,129.87,129.86,9.196e-05]
[1742592876723,7.7091,129.77,129.74,13.7613]
[1742592876923,28.66,129.81,129.74,4.0501]
[1742592877123,28.66,129.8,129.73,254.1]
[1742592877316,28.66,129.79,129.73,254.1]
[1742592878123,7.7095,129.76,129.75,0.05495304]
[1742592879225,7.76035313,129.77,129.75,0.05495304]
[1742592880827,7.7094,129.76,129.75,0.05495304]
[1742592881929,36.3094,129.76,129.75,0.05495304]
[1742592883229,44.0094,129.76,129.75,0.05495304]
[1742592883831,36.3094,129.76,129.75,0.05495304]
[1742592884332,44.0094,129.76,129.75,5.304e-05]
[1742592889831,36.3094,129.76,129.75,5.304e-05]
[1742592890134,44.0094,129.76,129.75,5.304e-05]
[1742592895836,36.1294,129.76,129.75,5.304e-05]
[1742592896037,36.1494,129.76,129.75,5.304e-05]
[1742592896335,7.7094,129.76,129.75,5.304e-05]
[1742592896542,36.1494,129.76,129.75,5.304e-05]
[1742592896939,7.7094,129.76,129.75,5.304e-05]
[1742592897242,36.1494,129.76,129.75,5.304e-05]
[1742592900140,28.44,129.76,129.75,5.304e-05]
[1742592900637,7.76025313,129.77,129.75,5.304e-05]
[1742592900838,36.14025313,129.77,129.75,5.304e-05]
[1742592901241,0.05125313,129.77,129.75,5.304e-05]
[1742592902338,254.4,129.87,129.75,5.304e-05]
[1742592902637,7.705,129.84,129.74,282.8]
[1742592903033,356.0,129.88,129.74,282.8]
[1742592903236,356.0,129.88,129.82,7.7055]
[1742592903237,7.7041,129.86,129.82,7.7055]
[1742592903641,0.05465266,129.85,129.83,0.05013041]
[1742592903836,0.05465266,129.85,129.83,7.75503041]
[1742592904542,0.05465266,129.85,129.83,0.05013041]
[1742592907244,7.75895266,129.85,129.83,0.05013041]
[1742592908041,0.05465266,129.85,129.83,0.05013041]
[1742592908844,7.75905266,129.85,129.83,0.05013041]
[1742592909143,0.05465266,129.85,129.83,0.05013041]
[1742592909342,0.05465266,129.85,129.83,28.43013041]
[1742592910847,0.05465266,129.85,129.83,28.41013041]
[1742592911751,7.75875266,129.85,129.83,28.41013041]
[1742592912045,0.05465266,129.85,129.83,36.11533041]
[1742592914845,19.52405269,129.92,129.83,36.11533041]
[1742592914846,19.52405269,129.92,129.83,36.11013041]
[1742592915048,19.52405269,129.92,129.83,28.36]
[1742592915447,7.7014,129.9,129.86,7.7029]
[1742592915650,7.7014,129.9,129.87,32.4316]
[1742592915947,7.7017,129.89,129.87,32.48787596]
[1742592916540,7.75232971,129.9,129.87,32.48787596]
[1742592916947,0.05092971,129.9,129.87,32.48787596]
[1742592917850,9.77045269,129.92,129.87,32.48787596]
[1742592918050,0.01745269,129.92,129.87,32.48787596]
[1742592918352,19.03550199,129.94,129.9,7.7007]
[1742592918552,19.03550199,129.94,129.91,28.38]
[1742592918952,19.03550199,129.94,129.91,28.43611577]
[1742592919845,7.6999,129.92,129.91,28.43611577]
[1742592920042,7.6999,129.92,129.91,0.05611577]
[1742592921456,7.6999,129.92,129.91,1.577e-05]
[1742592930358,7.75029141,129.93,129.91,1.577e-05]
[1742592930557,0.05059141,129.93,129.91,1.577e-05]
[1742592931561,7.6999,129.92,129.91,1.577e-05]
[1742592932457,7.75019141,129.93,129.91,1.577e-05]
[1742592933661,0.05059141,129.93,129.91,1.577e-05]
[1742592934259,7.74999141,129.93,129.91,1.577e-05]
[1742592934661,0.05059141,129.93,129.91,1.577e-05]
[1742592935458,7.74999141,129.93,129.91,1.577e-05]
[1742592936262,0.05059141,129.93,129.91,1.577e-05]
[1742592937361,7.75019141,129.93,129.91,1.577e-05]
[1742592938365,0.05059141,129.93,129.91,7.70021577]
[1742592938560,29.02,129.92,129.83,1.33959504]
[1742592938759,29.02,129.92,129.83,2.0321]
[1742592938960,29.02,129.92,129.84,29.12]
[1742592939166,50.12560199,129.94,129.85,254.02]
[1742592939562,50.12560199,129.94,129.86,4.2384]
[1742592939763,0.05611577,129.91,129.88,0.0563568]
[1742592947669,7.75671577,129.91,129.88,0.0563568]
[1742592948171,7.7012,129.9,129.88,0.0563568]
[1742592951071,7.7017,129.89,129.88,0.0563568]
[1742592956478,7.7014,129.9,129.88,29.0563568]
[1742592956977,7.7017,129.89,129.88,29.0563568]
[1742592957876,7.7013,129.9,129.88,29.0563568]
[1742592958971,7.75671577,129.91,129.88,29.0563568]
[1742592959168,0.05611577,129.91,129.88,29.0563568]
[1742592961382,0.05611577,129.91,129.88,36.7586568]
[1742592961574,0.05611577,129.91,129.88,29.0563568]
[1742592963474,7.75671577,129.91,129.88,0.0563568]
[1742592963678,7.75671577,129.91,129.89,28.94]
[1742592971700,0.05611577,129.91,129.9,7.7011]
[1742592975795,19.03550199,129.94,129.93,7.6993]
[1742592976000,18.90604237,129.96,129.93,28.72]
[1742592976302,18.90604237,129.96,129.95,7.6981]
[1742592976490,18.90604237,129.96,129.94,254.02]
[1742592976491,19.8389491,129.98,129.94,254.02]
[1742592976895,19.8389491,129.98,129.97,7.697]
[1742592977095,19.8389491,129.98,129.97,36.657]
[1742592977798,19.8389491,129.98,129.97,28.96]
[1742592978504,19.8389491,129.98,129.95,0.05273395]
[1742592979004,27.5356491,129.98,129.95,0.05273395]
[1742592979603,19.8389491,129.98,129.95,0.05273395]
[1742592980001,27.5356491,129.98,129.95,0.05273395]
[1742592980605,7.697,129.97,129.95,0.05273395]
[1742592981800,19.8389491,129.98,129.95,0.05273395]
[1742592982195,7.6972,129.97,129.95,0.05273395]
[1742592982504,19.8389491,129.98,129.95,0.05273395]
[1742592982903,7.6973,129.97,129.95,0.05273395]
[1742592984104,27.5355491,129.98,129.95,0.05273395]
[1742592984906,19.8389491,129.98,129.95,0.05273395]
[1742592985706,19.8389491,129.98,129.96,7.6973]
[1742592985907,19.8389491,129.98,129.97,28.92]
[1742592987612,19.8389491,129.98,129.97,36.617]
[1742592992313,7.6927,130.05,129.99,7.6958]
[1742592993913,11.707,130.06,129.99,7.6958]
[1742592994109,4.015,130.06,129.98,0.05817233]
[1742592994315,29.08,130.05,129.97,29.06]
[1742592994609,29.08,130.05,130.01,0.05739306]
[1742592995212,7.6937,130.03,130.01,0.05739306]
[1742592995612,33.075,130.06,130.01,0.05739306]
[1742592996508,4.015,130.06,130.01,0.05739306]
[1742592997620,11.7072,130.06,130.01,0.05739306]
[1742592997814,4.015,130.06,130.01,0.05739306]
[1742592998011,2.27270161,130.07,130.01,0.05739306]
[1742592998219,9.96380161,130.07,130.01,0.05739306]
[1742592998413,2.27270161,130.07,130.01,0.05739306]
[1742592998614,2.27270161,130.07,130.01,29.27739306]
[1742592998820,7.6926,130.05,130.01,29.27739306]
[1742592999826,7.6929,130.04,130.01,29.27739306]
[1742593000218,2.1075,130.06,130.01,29.27739306]
[1742593000819,7.6925,130.05,130.01,29.27739306]
[1742593001226,2.1075,130.06,130.01,29.27739306]
[1742593001424,2.1075,130.06,130.02,7.6936]
[1742593001619,2.27270161,130.07,130.02,7.6936]
[1742593002318,2.27270161,130.07,130.01,29.27739306]
[1742593002824,9.96400161,130.07,130.01,29.27739306]
[1742593003123,2.27270161,130.07,130.01,29.27739306]
[1742593003823,31.51270161,130.07,130.01,0.05739306]
[1742593004021,2.27270161,130.07,130.01,0.05739306]
[1742593004223,2.27270161,130.07,130.02,29.38]
[1742593005227,2.27270161,130.07,130.03,7.693]
[1742593005527,2.27270161,130.07,130.02,29.38]
[1742593005724,2.27270161,130.07,130.04,0.05555369]
[1742593005927,2.27270161,130.07,130.05,29.34]
[1742593006524,2.27270161,130.07,130.05,37.0321]
[1742593006724,2.27270161,130.07,130.05,29.32]
[1742593007322,4.1281,130.16,130.06,253.8]
[1742593007729,7.6883,130.12,130.1,0.05848144]
[1742593007929,4.1281,130.16,130.1,0.05848144]
[1742593008230,7.6874,130.14,130.1,0.05848144]
[1742593008429,33.4081,130.16,130.1,0.05848144]
[1742593009234,2.0703,130.18,130.11,29.24]
[1742593009527,2.0703,130.18,130.12,253.78]
[1742593009727,2.0703,130.18,130.13,0.05606662]
[1742593009926,2.0703,130.18,130.14,29.24]
[1742593010123,9.7553,130.18,130.14,29.24]
[1742593010328,2.0703,130.18,130.14,29.24]
[1742593010826,4.1281,130.2,130.14,29.24]
[1742593011022,6.2299,130.2,130.14,29.24]
[1742593011230,6.2299,130.2,130.16,0.05254965]
[1742593011429,7.6851,130.17,130.16,0.05254965]
[1742593012925,29.2,130.17,130.12,253.78]
[1742593013828,7.6875,130.13,130.12,253.78]
[1742593014028,29.2,130.17,130.13,0.05933419]
[1742593014233,0.05254965,130.14,130.13,0.05933419]
[1742593014731,7.73944965,130.14,130.13,0.05933419]
[1742593015323,7.6887,130.11,130.1,29.22]
[1742593015527,2.0112,130.13,130.08,29.18]
[1742593016036,7.6898,130.1,130.08,29.18]
[1742593016636,0.05875651,130.1,129.98,264.25694393]
[1742593016835,2.0991,130.09,129.99,31.3262]
[1742593017024,29.34,130.08,129.99,31.3262]
[1742593017426,7.6925,130.05,130.01,7.6943]
[1742593017635,29.34,130.08,129.99,31.3262]
[1742593017932,7.6936,130.03,130.02,0.0530778]
[1742593021438,7.7514006,130.04,130.02,0.0530778]
[1742593021637,0.0584006,130.04,130.02,0.0530778]
[1742593021938,0.0584006,130.04,130.02,29.4930778]
[1742593022440,7.7512006,130.04,130.02,29.4930778]
[1742593022831,0.0584006,130.04,130.02,29.4930778]
[1742593023428,7.7512006,130.04,130.02,29.4930778]
[1742593023829,0.0584006,130.04,130.02,29.4930778]
[1742593024538,7.7513006,130.04,130.02,29.4930778]
[1742593025638,7.6934,130.03,130.02,29.4930778]
[1742593025842,0.0584006,130.04,130.02,29.4930778]
[1742593026043,0.0584006,130.04,130.02,0.0530778]
[1742593026746,7.6934,130.03,130.02,0.0530778]
[1742593028644,0.0584006,130.04,129.98,253.68]
[1742593029144,7.6958,129.99,129.98,253.68]
[1742593029441,7.6958,129.99,129.93,32.78244174]
[1742593029847,0.05805603,129.97,129.95,0.04909132]
[1742593030145,0.05805603,129.97,129.96,29.34]
[1742593031847,0.05805603,129.97,129.96,37.0375]
[1742593033040,1.9854,130.03,129.96,29.34]
[1742593033347,2.0155,130.07,129.97,253.8]
[1742593033540,7.6931,130.04,130.0,7.6947]
[1742593033735,7.6931,130.04,130.01,29.36]
[1742593034243,0.05698844,130.04,130.01,37.10752097]
[1742593034643,7.74988844,130.04,130.01,37.10752097]
[1742593034843,0.05698844,130.04,130.01,37.10752097]
[1742593035847,0.05698844,130.04,130.01,29.41302097]
[1742593036748,0.05698844,130.04,130.03,7.6934]
[1742593037349,1.9801,130.1,130.03,253.8]
[1742593037551,29.32,130.13,130.04,29.32]
[1742593037849,29.32,130.13,130.07,7.6907]
[1742593038049,29.32,130.13,130.08,29.32]
[1742593038249,7.6884,130.12,130.08,29.32]
[1742593038451,6.1107,130.14,130.08,37.0104]
[1742593038650,0.05424317,130.12,130.09,0.05391615]
[1742593038853,7.6887,130.11,130.09,0.05391615]
[1742593039044,0.05424317,130.12,130.09,0.05391615]
[1742593039450,7.74264317,130.12,130.09,7.74371615]
[1742593039750,0.05424317,130.12,130.09,0.05391615]
[1742593040144,7.6888,130.11,130.09,0.05391615]
[1742593040344,0.05424317,130.12,130.09,0.05391615]
[1742593040646,7.689,130.11,130.09,0.05391615]
[1742593041248,0.05424317,130.12,130.09,0.05391615]
[1742593042051,0.05424317,130.12,130.11,7.6887]
[1742593042247,0.05424317,130.12,130.11,36.9687]
[1742593045054,0.05424317,130.12,130.11,29.28]
[1742593046152,7.74234317,130.12,130.11,29.28]
[1742593046351,0.05424317,130.12,130.11,29.28]
[1742593046554,0.05424317,130.12,130.1,29.22]
[1742593047455,7.74254317,130.12,130.1,29.22]
[1742593047848,7.6888,130.11,130.09,282.97391615]
[1742593048056,0.05424317,130.12,130.09,282.97391615]
[1742593048450,7.6893,130.1,130.09,282.97391615]
[1742593048653,7.6893,130.1,130.09,253.79391615]
[1742593048852,7.6893,130.1,130.09,0.05391615]
[1742593053757,2.0722,130.11,130.05,29.08]
[1742593053758,7.6916,130.06,130.05,29.08]
[1742593054157,7.6922,130.05,130.04,253.68]
[1742593055759,7.6928,130.04,130.03,0.0550289]
[1742593057049,29.02,130.04,129.99,253.68]
[1742593057451,7.6959,129.99,129.96,9.7426]
[1742593057647,7.6959,129.99,129.96,2.0453]
[1742593058060,7.6962,129.99,129.96,2.0453]
[1742593058358,0.05936824,129.99,129.96,0.0530254]
[1742593058858,0.05936824,129.99,129.96,29.0930254]
[1742593059465,0.05936824,129.99,129.96,36.7905254]
[1742593059760,0.05936824,129.99,129.96,29.0930254]
[1742593061357,0.05936824,129.99,129.96,282.8330254]
[1742593061763,0.05936824,129.99,129.98,7.6964]
[1742593062364,0.05936824,129.99,129.96,0.0530254]
[1742593063864,7.75546824,129.99,129.96,0.0530254]
[1742593064360,0.05936824,129.99,129.96,0.0530254]
[1742593064865,7.75546824,129.99,129.96,0.0530254]
[1742593065663,0.05936824,129.99,129.96,7.7503254]
[1742593066363,7.75516824,129.99,129.96,0.0530254]
[1742593067769,0.05936824,129.99,129.96,7.7504254]
[1742593067969,0.05936824,129.99,129.96,0.0530254]
[1742593068570,7.6964,129.98,129.96,0.0530254]
[1742593068862,0.05936824,129.99,129.96,0.0530254]
[1742593069068,0.05936824,129.99,129.97,29.08]
[1742593069672,7.75516824,129.99,129.96,0.0530254]
[1742593070363,0.05936824,129.99,129.96,0.0530254]
[1742593070567,0.05936824,129.99,129.97,253.84]
[1742593070763,2.0155,130.04,129.98,29.22]
[1742593070969,2.0172,130.05,129.98,29.22]
[1742593071270,2.0172,130.05,129.98,31.308]
[1742593071571,7.6929,130.04,130.0,7.6948]
[1742593071771,7.6929,130.04,130.01,29.22]
[1742593071967,0.05034814,130.03,130.01,29.27385864]
[1742593072165,7.74384814,130.03,130.01,29.27385864]
[1742593072365,0.05034814,130.03,130.01,29.27385864]
[1742593073272,7.74414814,130.03,130.01,29.27385864]
[1742593074866,7.694,130.02,130.01,29.27385864]
[1742593075776,7.74404814,130.03,130.01,29.27385864]
[1742593076074,0.05034814,130.03,130.01,29.27385864]
[1742593076474,7.694,130.02,130.01,29.27385864]
[1742593078077,0.05034814,130.03,130.01,29.27385864]
[1742593078577,0.05034814,130.03,130.01,36.96805864]
[1742593080181,0.05034814,130.03,130.01,29.27385864]
[1742593080778,7.74374814,130.03,130.01,29.27385864]
[1742593082575,7.694,130.02,130.01,29.27385864]
[1742593082780,7.694,130.02,130.01,0.05385864]
[1742593083476,7.694,130.02,130.01,5.864e-05]
[1742593087486,15.394,130.02,130.01,5.864e-05]
[1742593088076,15.394,130.02,129.9,28.98]
[1742593088077,7.7007,129.91,129.9,28.98]
[1742593089183,28.98,129.95,129.88,42.51167704]
[1742593089184,0.05514636,129.92,129.88,71.47167704]
[1742593089486,0.05514636,129.92,129.89,0.05530563]
[1742593089685,7.7012,129.9,129.89,0.05530563]
[1742593092586,29.01514636,129.92,129.83,39.53694393]
[1742593092786,28.96,129.92,129.83,39.53694393]
[1742593092981,7.7032,129.87,129.83,47.24194393]
[1742593093688,0.04994267,129.86,129.84,0.05066484]
[1742593093883,7.75354267,129.86,129.84,0.05066484]
[1742593096991,7.7041,129.85,129.84,0.05066484]
[1742593097391,36.5841,129.85,129.84,0.05066484]
[1742593097587,7.7054,129.83,129.79,9.7592]
[1742593097791,29.02,129.82,129.76,42.51167704]
[1742593097992,7.7075,129.8,129.76,42.51167704]
[1742593098489,29.16,129.82,129.76,50.22097704]
[1742593098690,0.05903877,129.79,129.77,29.23037441]
[1742593098895,29.18,129.84,129.77,29.18]
[1742593099097,8.645e-05,129.79,129.77,29.23197041]
[1742593099296,2.0501,129.85,129.77,29.18]
[1742593099489,9.7547,129.85,129.77,29.18]
[1742593100297,0.05845035,129.82,129.8,7.7631576]
[1742593100496,0.05845035,129.82,129.81,29.22]
[1742593104500,0.05845035,129.82,129.81,36.9264]
[1742593104995,7.7064,129.81,129.8,5.76e-05]
[1742593105195,29.87845035,129.82,129.72,29.82]
[1742593105401,29.82,129.82,129.73,2.0505]
[1742593105590,7.7067,129.81,129.76,7.7093]
[1742593105794,29.84,129.84,129.77,29.84]
[1742593105997,2.0501,129.85,129.78,7.7081]
[1742593106201,0.0585436,129.82,129.79,0.05757202]
[1742593106805,7.707,129.8,129.79,0.05757202]
[1742593107403,0.0585436,129.82,129.79,0.05757202]
[1742593108505,7.707,129.8,129.79,0.05757202]
[1742593108805,0.0585436,129.82,129.79,0.05757202]
[1742593109001,7.707,129.8,129.79,0.05757202]
[1742593115210,7.707,129.8,129.79,7.202e-05]
[1742593117307,45.087,129.8,129.79,7.202e-05]
[1742593122507,7.7142,129.69,129.65,7.7159]
[1742593122710,29.62,129.72,129.65,37.3359]
[1742593123312,29.62,129.72,129.66,29.6]
[1742593123313,7.7139,129.69,129.66,29.6]
[1742593123507,7.7139,129.69,129.66,37.3153]
[1742593123710,7.76366593,129.69,129.66,37.37383974]
[1742593125213,0.04976593,129.69,129.66,29.65853974]
[1742593125511,0.04976593,129.69,129.66,0.05853974]
[1742593125710,7.7147,129.68,129.66,0.05853974]
[1742593125914,0.04976593,129.69,129.66,0.05853974]
[1742593126311,7.7148,129.67,129.66,0.05853974]
[1742593126615,0.04976593,129.69,129.66,0.05853974]
[1742593126808,7.7146,129.68,129.66,29.61853974]
[1742593127209,0.04976593,129.69,129.66,29.61853974]
[1742593128616,7.7148,129.67,129.66,29.61853974]
[1742593129511,0.04976593,129.69,129.66,29.61853974]
[1742593129915,0.04976593,129.69,129.66,0.05853974]
[1742593130217,7.7148,129.67,129.66,0.05853974]
[1742593133920,7.76366593,129.69,129.66,0.05853974]
[1742593134616,7.76366593,129.69,129.66,7.77363974]
[1742593135021,7.76366593,129.69,129.67,29.44]
[1742593135919,0.04976593,129.69,129.67,37.1547]
[1742593136421,0.04976593,129.69,129.67,29.44]
[1742593137019,7.76386593,129.69,129.67,29.44]
[1742593139726,7.7142,129.68,129.67,29.44]
[1742593139919,0.04976593,129.69,129.67,29.44]
[1742593140426,7.76386593,129.69,129.67,29.44]
[1742593141126,7.7142,129.68,129.67,29.44]
[1742593142323,7.76356593,129.69,129.67,29.44]
[1742593142923,7.7143,129.68,129.66,7.77353974]
[1742593143226,7.7143,129.68,129.66,0.05853974]
[1742593148934,7.76356593,129.69,129.66,7.77363974]
[1742593149433,0.04976593,129.69,129.66,7.77363974]
[1742593149634,0.04976593,129.69,129.67,7.7146]